fUST/lending_fUST_20240620
["ID","MTS","AMOUNT","RATE_DAILY","PERIOD"]
[329914903,1718829672838,-1526.28,0.00030136,120]
[329914906,1718829672860,-1526.28,0.00030136,120]
[329914908,1718829672882,-1526.28,0.00030136,120]
[329914910,1718829672905,-1526.28,0.00030136,120]
[329914912,1718829672928,-1526.28,0.00030136,120]
[329914914,1718829672950,-1526.28,0.00030136,120]
[329914916,1718829672972,-1526.28,0.00030136,120]
[329914918,1718829672996,-1526.28,0.00030136,120]
[329914920,1718829673018,-1526.28,0.00030136,120]
[329914922,1718829673042,-1526.28,0.00030136,120]
[329914924,1718829673065,-1526.28,0.00030136,120]
[329914926,1718829673087,-1526.28,0.00030136,120]
[329914928,1718829673109,-1526.28,0.00030136,120]
[329914930,1718829673132,-1526.28,0.00030136,120]
[329914932,1718829673155,-1526.28,0.00030136,120]
[329914934,1718829673177,-1526.28,0.00030136,120]
[329914936,1718829673200,-1526.28,0.00030136,120]
[329914938,1718829673222,-1526.28,0.00030136,120]
[329914940,1718829673248,-410.38737697,0.00030137,60]
[329914942,1718829673274,-3016.0,0.00030137,60]
[329914944,1718829673299,-1526.28,0.0003041,120]
[329914946,1718829673324,-1526.28,0.00030684,120]
[329914948,1718829673350,-178.81886089,0.00030936,30]
[329914950,1718829673372,-1526.34078882,0.00030958,120]
[329914953,1718829673413,-1322.0,0.00032798,32]
[329915182,1718829856263,277.22680273,0.00015,2]
[329915183,1718829856292,432.05649007,0.00015,2]
[329915184,1718829856321,276.85671311,0.00015,2]
[329915185,1718829856351,115.98442775,0.00015,2]
[329915186,1718829886659,226.2066056,0.0001548,2]
[329915187,1718829925768,89.86545672,9.999e-05,2]
[329915188,1718829925799,432.05649007,9.999e-05,2]
[329915189,1718829925831,346.77851393,9.999e-05,2]
[329915190,1718829953076,85.27797614,9.999e-05,2]
[329915191,1718829953103,200.93202505,9.999e-05,2]
[329915192,1718830028194,-816.29702086,0.00016377,2]
[329915193,1718830039085,-218.7235122,0.00016377,2]
[329915194,1718830107233,357.37218787,0.000258,60]
[329915195,1718830170136,-206.83933292,0.00016377,2]
[329915196,1718830207446,57.16066708,9.999e-05,2]
[329915197,1718830207468,235.14376078,9.999e-05,2]
[329915198,1718830207492,333.92259485,9.999e-05,2]
[329915230,1718830232211,-177.38616281,0.00016393,2]
[329915232,1718830232221,-303.41400745,0.00016393,2]
[329915234,1718830232232,-636.9375,0.00016393,2]
[329915236,1718830232244,-258.18004786,0.00016393,2]
[329915239,1718830232269,-2916.066193,0.00016393,2]
[329915242,1718830232280,-935.67306823,0.00016393,2]
[329915244,1718830232291,-2878.23665169,0.00016393,2]
[329915246,1718830232302,-20349.81753273,0.00016394,2]
[329915248,1718830232321,-972.36960867,0.00016394,2]
[329915249,1718830232333,-9879.46556559,0.00016394,2]
[329915281,1718830238027,-4295.95568397,0.00016394,2]
[329915282,1718830238036,-285.45673797,0.00016478,2]
[329915283,1718830238045,-166.56944949,0.00016479,2]
[329915284,1718830238055,-1114.23146943,0.0001648,2]
[329915285,1718830238064,-456.80214531,0.0001648,2]
[329915286,1718830238074,-673.68972469,0.00016498,2]
[329915287,1718830238084,-19987.32718474,0.000165,2]
[329915288,1718830238095,-4912.67281526,0.000165,2]
[329915289,1718830238105,-291.47926567,0.000179,2]
[329915290,1718830238114,-825.23441337,0.00018,2]
[329915291,1718830238124,-539.59557086,0.00019,2]
[329915292,1718830238133,-500.0,0.00019178,2]
[329915293,1718830238143,-200.0,0.00019178,2]
[329915294,1718830238152,-500.0,0.00019178,2]
[329915295,1718830238165,-500.0,0.00019178,2]
[329915296,1718830238174,-500.0,0.00019178,2]
[329915297,1718830238184,-500.0,0.00019178,2]
[329915298,1718830238192,-492.77706679,0.00019178,2]
[329915299,1718830238202,-296.82175673,0.00019178,2]
[329915300,1718830238211,-291.47926565,0.00019564,2]
[329915301,1718830238220,-482.39629157,0.0002,2]
[329915302,1718830238230,-2577.33828936,0.0002,2]
[329915303,1718830238242,-1589.11413956,0.0002,2]
[329915304,1718830238251,-406.738086,0.00021096,2]
[329915305,1718830238261,-291.47926565,0.00021229,2]
[329915306,1718830238270,-291.47926565,0.00022893,2]
[329915307,1718830238279,-1019.8,0.0002346,5]
[329915308,1718830238288,-153.0,0.00023467,2]
[329915309,1718830238298,-153.0,0.00023467,2]
[329915310,1718830238308,-153.0,0.00023467,2]
[329915311,1718830238317,-153.0,0.00023467,2]
[329915312,1718830238326,-153.0,0.00023467,2]
[329915313,1718830238335,-153.0,0.00023533,2]
[329915314,1718830238344,-153.0,0.00023533,2]
[329915315,1718830238353,-153.0,0.00023533,2]
[329915316,1718830238362,-153.0,0.00023533,2]
[329915317,1718830238371,-153.0,0.00023533,2]
[329915318,1718830238382,-999.85000398,0.0002382,2]
[329915319,1718830238391,-1139.81047569,0.0002389,2]
[329915320,1718830238401,-620.00095028,0.00024189,2]
[329915321,1718830238410,-5272.58203083,0.00024353,2]
[329915322,1718830238419,-5000.0,0.000245,2]
[329915323,1718830238428,-178.49,0.00024547,3]
[329915324,1718830238438,-2000.0,0.00024557,2]
[329915325,1718830238447,-291.47926565,0.00024557,2]
[329915326,1718830238456,-488.19862728,0.00024616,2]
[329915327,1718830238465,-214.48170912,0.00024641,2]
[329915328,1718830238473,-3119.7554932,0.00024641,2]
[329915329,1718830238482,-11458.52214763,0.00024648,2]
[329915330,1718830238491,-21085.80019458,0.00024654,2]
[329915331,1718830238500,-489.77886636,0.00024655,2]
[329915332,1718830238510,-31372.41262964,0.00024655,2]
[329915333,1718830238522,-1252.50584317,0.00024655,2]
[329915334,1718830238533,-2113.8596528,0.00024655,2]
[329915335,1718830238542,-212.11249818,0.00024656,2]
[329915336,1718830238551,-558.0486585,0.00024657,15]
[329915337,1718830238563,-500.0,0.00024657,5]
[329915338,1718830238572,-286.07919048,0.00024657,5]
[329915393,1718830242713,-2240.27122362,0.00016393,2]
[329915396,1718830242725,-196.86793985,0.00016393,2]
[329915398,1718830242736,-525.78592595,0.00024657,5]
[329915400,1718830242746,-500.0,0.00024657,5]
[329915402,1718830242755,-500.0,0.00024657,5]
[329915404,1718830242764,-500.0,0.00024657,5]
[329915405,1718830242774,-500.0,0.00024657,5]
[329915406,1718830242783,-418.54173744,0.00024657,5]
[329915407,1718830242793,-530.59640761,0.00024657,5]
[329915408,1718830242802,-500.0,0.00024657,5]
[329915409,1718830242813,-500.0,0.00024657,5]
[329915411,1718830242823,-500.0,0.00024657,5]
[329915412,1718830242832,-500.0,0.00024657,5]
[329915413,1718830242841,-500.0,0.00024657,5]
[329915414,1718830242852,-447.96430116,0.00024657,5]
[329915415,1718830242862,-500.0,0.00024657,5]
[329915416,1718830242871,-500.0,0.00024657,5]
[329915417,1718830242882,-502.50622504,0.00024657,5]
[329915418,1718830242905,-500.0,0.00024657,5]
[329915419,1718830242916,-500.0,0.00024657,5]
[329915420,1718830242925,-500.0,0.00024657,5]
[329915421,1718830242935,-500.0,0.00024657,5]
[329915422,1718830242947,-500.0,0.00024657,5]
[329915423,1718830242957,-500.0,0.00024657,5]
[329915424,1718830242967,-500.0,0.00024657,5]
[329915425,1718830242978,-250.0,0.00024657,5]
[329915426,1718830242990,-423.05474349,0.00024657,5]
[329915427,1718830243000,-500.0,0.00024657,5]
[329915428,1718830243010,-500.0,0.00024657,5]
[329915429,1718830243020,-500.0,0.00024657,5]
[329915430,1718830243030,-500.0,0.00024657,5]
[329915431,1718830243039,-500.0,0.00024657,5]
[329915432,1718830243049,-500.0,0.00024657,5]
[329915433,1718830243059,-500.0,0.00024657,5]
[329915434,1718830243071,-500.0,0.00024657,5]
[329915435,1718830243081,-500.0,0.00024657,5]
[329915436,1718830243091,-500.0,0.00024657,5]
[329915437,1718830243100,-500.0,0.00024657,5]
[329915438,1718830243109,-500.0,0.00024657,5]
[329915439,1718830243119,-497.20176544,0.00024657,5]
[329915440,1718830243129,-500.0,0.00024657,5]
[329915441,1718830243138,-500.0,0.00024657,5]
[329915442,1718830243148,-500.0,0.00024657,5]
[329915444,1718830243158,-500.0,0.00024657,5]
[329915445,1718830243168,-500.0,0.00024657,5]
[329915447,1718830243178,-500.0,0.00024657,5]
[329915449,1718830243187,-500.0,0.00024657,5]
[329915450,1718830243196,-500.0,0.00024657,5]
[329915452,1718830243206,-500.0,0.00024657,5]
[329915454,1718830243216,-500.0,0.00024657,5]
[329915455,1718830243225,-541.40067189,0.00024657,5]
[329915457,1718830243236,-500.0,0.00024657,5]
[329915458,1718830243246,-500.0,0.00024657,5]
[329915460,1718830243256,-500.0,0.00024657,5]
[329915462,1718830243266,-500.0,0.00024657,5]
[329915463,1718830243275,-500.0,0.00024657,5]
[329915464,1718830243285,-500.0,0.00024657,5]
[329915465,1718830243295,-500.0,0.00024657,5]
[329915467,1718830243306,-500.0,0.00024657,5]
[329915469,1718830243317,-500.0,0.00024657,5]
[329915471,1718830243327,-500.0,0.00024657,5]
[329915473,1718830243337,-500.0,0.00024657,5]
[329915475,1718830243347,-500.0,0.00024657,5]
[329915477,1718830243356,-500.0,0.00024657,5]
[329915480,1718830243366,-500.0,0.00024657,5]
[329915483,1718830243375,-500.0,0.00024657,5]
[329915486,1718830243386,-500.0,0.00024657,5]
[329915490,1718830243395,-643.34195118,0.00024657,5]
[329915493,1718830243405,-500.0,0.00024657,5]
[329915496,1718830243415,-500.0,0.00024657,5]
[329915499,1718830243424,-500.0,0.00024657,5]
[329915502,1718830243433,-500.0,0.00024657,5]
[329915504,1718830243443,-500.0,0.00024657,5]
[329915507,1718830243452,-500.0,0.00024657,5]
[329915510,1718830243462,-500.0,0.00024657,5]
[329915513,1718830243471,-500.0,0.00024657,5]
[329915515,1718830243481,-500.0,0.00024657,5]
[329915517,1718830243490,-749.21,0.00024657,5]
[329915519,1718830243500,-500.0,0.00024657,5]
[329915521,1718830243509,-500.0,0.00024657,5]
[329915523,1718830243519,-500.0,0.00024657,5]
[329915525,1718830243529,-500.0,0.00024657,5]
[329915527,1718830243538,-504.5217353,0.00024657,5]
[329915529,1718830243547,-500.0,0.00024657,5]
[329915531,1718830243556,-665.5,0.00024657,5]
[329915533,1718830243566,-500.0,0.00024657,5]
[329915535,1718830243578,-1751.56844881,0.00024657,5]
[329915548,1718830243694,-217.66155119,0.00024657,5]
[329915551,1718830243705,-500.0,0.00024657,5]
[329915553,1718830243717,-500.0,0.00024657,5]
[329915555,1718830243727,-500.0,0.00024657,5]
[329915557,1718830243737,-500.0,0.00024657,5]
[329915559,1718830243747,-500.0,0.00024657,5]
[329915561,1718830243756,-500.0,0.00024657,5]
[329915563,1718830243766,-500.0,0.00024657,5]
[329915565,1718830243775,-500.0,0.00024657,5]
[329915567,1718830243785,-500.0,0.00024657,5]
[329915569,1718830243795,-500.0,0.00024657,5]
[329915571,1718830243804,-500.0,0.00024657,5]
[329915573,1718830243815,-500.0,0.00024657,5]
[329915575,1718830243824,-500.0,0.00024657,5]
[329915577,1718830243833,-500.0,0.00024657,5]
[329915579,1718830243843,-500.0,0.00024657,5]
[329915581,1718830243853,-510.25044606,0.00024657,5]
[329915583,1718830243863,-500.0,0.00024657,5]
[329915585,1718830243872,-500.0,0.00024657,5]
[329915587,1718830243882,-500.0,0.00024657,5]
[329915589,1718830243892,-500.0,0.00024657,5]
[329915591,1718830243906,-500.0,0.00024657,5]
[329915593,1718830243916,-500.0,0.00024657,5]
[329915595,1718830243925,-500.58172415,0.00024657,5]
[329915597,1718830243935,-509.8163225,0.00024657,5]
[329915600,1718830243946,-500.0,0.00024657,5]
[329915601,1718830243957,-527.77124211,0.00024657,5]
[329915603,1718830243966,-500.0,0.00024657,5]
[329915605,1718830243979,-500.0,0.00024657,5]
[329915607,1718830243989,-500.0,0.00024657,5]
[329915610,1718830244013,-500.0,0.00024657,5]
[329915612,1718830244036,-500.0,0.00024657,5]
[329915613,1718830244060,-500.0,0.00024657,5]
[329915616,1718830244084,-500.0,0.00024657,5]
[329915617,1718830244107,-628.39,0.00024657,5]
[329915620,1718830244129,-500.0,0.00024657,5]
[329915622,1718830244152,-504.17060649,0.00024657,5]
[329915624,1718830244168,-500.0,0.00024657,5]
[329915626,1718830244178,-500.0,0.00024657,5]
[329915628,1718830244188,-500.0,0.00024657,5]
[329915630,1718830244197,-500.0,0.00024657,5]
[329915632,1718830244206,-500.0,0.00024657,5]
[329915634,1718830244216,-500.0,0.00024657,5]
[329915636,1718830244225,-500.0,0.00024657,5]
[329915637,1718830244235,-500.0,0.00024657,5]
[329915640,1718830244244,-500.0,0.00024657,5]
[329915642,1718830244253,-500.0,0.00024657,5]
[329915644,1718830244264,-500.0,0.00024657,5]
[329915646,1718830244274,-500.0,0.00024657,5]
[329915648,1718830244283,-500.0,0.00024657,5]
[329915650,1718830244292,-500.0,0.00024657,5]
[329915652,1718830244303,-500.0,0.00024657,5]
[329915654,1718830244314,-500.0,0.00024657,5]
[329915656,1718830244326,-500.0,0.00024657,5]
[329915658,1718830244336,-500.0,0.00024657,5]
[329915660,1718830244346,-500.0,0.00024657,5]
[329915662,1718830244355,-1564.51,0.00024657,5]
[329915664,1718830244364,-500.0,0.00024657,5]
[329915666,1718830244373,-500.0,0.00024657,5]
[329915668,1718830244382,-500.0,0.00024657,5]
[329915670,1718830244391,-220.62742346,0.00024657,5]
[329915672,1718830244400,-500.0,0.00024657,5]
[329915674,1718830244409,-500.0,0.00024657,5]
[329915676,1718830244418,-286.97219915,0.00024657,5]
[329915677,1718830244429,-500.0,0.00024657,5]
[329915679,1718830244439,-500.0,0.00024657,5]
[329915681,1718830244448,-1000.15,0.00024657,5]
[329915684,1718830244458,-500.0,0.00024657,5]
[329915686,1718830244467,-747.03,0.00024657,5]
[329915688,1718830244476,-500.0,0.00024657,5]
[329915690,1718830244485,-500.0,0.00024657,5]
[329915692,1718830244495,-500.0,0.00024657,5]
[329915694,1718830244504,-500.0,0.00024657,5]
[329915696,1718830244513,-500.0,0.00024657,5]
[329915698,1718830244522,-500.0,0.00024657,5]
[329915700,1718830244531,-592.773763,0.00024657,5]
[329915701,1718830244541,-1216.36,0.00024657,5]
[329915703,1718830244551,-500.0,0.00024657,5]
[329915706,1718830244561,-500.0,0.00024657,5]
[329915707,1718830244575,-500.0,0.00024657,5]
[329915709,1718830244584,-500.0,0.00024657,5]
[329915711,1718830244593,-500.0,0.00024657,2]
[329915713,1718830244603,-500.0,0.00024657,5]
[329915715,1718830244612,-500.0,0.00024657,5]
[329915717,1718830244621,-500.0,0.00024657,5]
[329915719,1718830244631,-500.0,0.00024657,5]
[329915721,1718830244641,-500.0,0.00024657,5]
[329915723,1718830244651,-500.0,0.00024657,5]
[329915725,1718830244660,-500.0,0.00024657,5]
[329915727,1718830244670,-500.0,0.00024657,5]
[329915729,1718830244680,-500.0,0.00024657,5]
[329915731,1718830244690,-756.89,0.00024657,5]
[329915733,1718830244699,-500.0,0.00024657,5]
[329915735,1718830244711,-1703.87,0.00024657,5]
[329915737,1718830244720,-500.0,0.00024657,5]
[329915739,1718830244729,-500.0,0.00024657,5]
[329915741,1718830244738,-500.0,0.00024657,5]
[329915754,1718830244852,-500.0,0.00024657,5]
[329915756,1718830244863,-500.0,0.00024657,5]
[329915759,1718830244871,-500.0,0.00024657,5]
[329915761,1718830244881,-500.0,0.00024657,5]
[329915763,1718830244890,-500.0,0.00024657,5]
[329915765,1718830244902,-500.0,0.00024657,5]
[329915767,1718830244911,-500.0,0.00024657,5]
[329915768,1718830244920,-500.0,0.00024657,5]
[329915770,1718830244927,-500.0,0.00024657,5]
[329915772,1718830244935,-500.0,0.00024657,5]
[329915774,1718830244946,-500.0,0.00024657,5]
[329915776,1718830244955,-500.0,0.00024657,5]
[329915778,1718830244964,-500.0,0.00024657,5]
[329915780,1718830244973,-500.0,0.00024657,5]
[329915782,1718830244986,-500.0,0.00024657,5]
[329915784,1718830244996,-500.0,0.00024657,5]
[329915787,1718830245005,-500.0,0.00024657,5]
[329915789,1718830245015,-3484.51,0.00024657,5]
[329915791,1718830245023,-500.0,0.00024657,5]
[329915793,1718830245032,-500.0,0.00024657,5]
[329915795,1718830245040,-779.32,0.00024657,5]
[329915797,1718830245048,-500.0,0.00024657,5]
[329915799,1718830245057,-500.0,0.00024657,5]
[329915801,1718830245068,-500.0,0.00024657,5]
[329915802,1718830245077,-500.0,0.00024657,5]
[329915804,1718830245086,-502.60032372,0.00024657,5]
[329915806,1718830245095,-500.0,0.00024657,5]
[329915808,1718830245105,-500.0,0.00024657,5]
[329915810,1718830245114,-500.0,0.00024657,5]
[329915812,1718830245124,-500.0,0.00024657,5]
[329915814,1718830245133,-500.0,0.00024657,5]
[329915817,1718830245142,-500.0,0.00024657,5]
[329915819,1718830245152,-262.53668752,0.00024657,5]
[329915820,1718830245161,-500.0,0.00024657,5]
[329915822,1718830245169,-500.0,0.00024657,5]
[329915824,1718830245178,-839.15,0.00024657,5]
[329915826,1718830245188,-426.21645477,0.00024657,5]
[329915828,1718830245198,-500.0,0.00024657,5]
[329915830,1718830245207,-500.0,0.00024657,5]
[329915832,1718830245216,-500.0,0.00024657,5]
[329915834,1718830245225,-500.0,0.00024657,5]
[329915836,1718830245236,-326.81676017,0.00024657,5]
[329915839,1718830245246,-500.0,0.00024657,5]
[329915841,1718830245256,-500.0,0.00024657,5]
[329915843,1718830245266,-500.0,0.00024657,5]
[329915844,1718830245276,-500.0,0.00024657,5]
[329915847,1718830245286,-500.0,0.00024657,5]
[329915848,1718830245295,-500.0,0.00024657,5]
[329915850,1718830245305,-500.0,0.00024657,5]
[329915852,1718830245319,-500.0,0.00024657,5]
[329915854,1718830245329,-500.0,0.00024657,5]
[329915857,1718830245338,-500.0,0.00024657,5]
[329915858,1718830245348,-500.0,0.00024657,2]
[329915860,1718830245357,-500.0,0.00024657,5]
[329915862,1718830245367,-500.0,0.00024657,5]
[329915865,1718830245377,-1232.41,0.00024657,5]
[329915866,1718830245387,-500.0,0.00024657,5]
[329915869,1718830245396,-500.0,0.00024657,5]
[329915870,1718830245406,-500.0,0.00024657,5]
[329915872,1718830245416,-500.0,0.00024657,5]
[329915874,1718830245426,-258.58147632,0.00024657,5]
[329915876,1718830245435,-5230.91,0.00024657,5]
[329915878,1718830245445,-500.0,0.00024657,5]
[329915880,1718830245455,-512.41225665,0.00024657,5]
[329915882,1718830245465,-1634.16,0.00024657,5]
[329915884,1718830245474,-500.0,0.00024657,5]
[329915886,1718830245484,-500.0,0.00024657,5]
[329915888,1718830245493,-500.0,0.00024657,5]
[329915890,1718830245503,-500.0,0.00024657,5]
[329915892,1718830245513,-513.14356072,0.00024657,5]
[329915894,1718830245523,-500.0,0.00024657,5]
[329915896,1718830245532,-754.96,0.00024657,5]
[329915898,1718830245541,-781.01,0.00024657,5]
[329915900,1718830245550,-500.0,0.00024657,5]
[329915902,1718830245560,-500.0,0.00024657,5]
[329915904,1718830245573,-500.0,0.00024657,5]
[329915906,1718830245583,-500.0,0.00024657,5]
[329915908,1718830245593,-500.0,0.00024657,5]
[329915910,1718830245602,-500.0,0.00024657,5]
[329915912,1718830245613,-500.0,0.00024657,5]
[329915914,1718830245622,-500.0,0.00024657,5]
[329915916,1718830245632,-509.49120941,0.00024657,5]
[329915918,1718830245643,-500.0,0.00024657,5]
[329915921,1718830245654,-500.0,0.00024657,5]
[329915924,1718830245664,-751.92,0.00024657,5]
[329915926,1718830245675,-345.14859414,0.00024657,5]
[329915929,1718830245692,-406.77140586,0.00024657,5]
[329915931,1718830245702,-751.92,0.00024657,5]
[329915933,1718830245713,-751.92,0.00024657,5]
[329915935,1718830245723,-500.0,0.00024657,5]
[329915937,1718830245732,-751.92,0.00024657,5]
[329915939,1718830245740,-751.92,0.00024657,5]
[329915941,1718830245750,-751.92,0.00024657,5]
[329915943,1718830245760,-501.040535,0.00024657,2]
[329915945,1718830245770,-751.92,0.00024657,5]
[329915947,1718830245780,-500.0,0.00024657,5]
[329915949,1718830245790,-500.0,0.00024657,5]
[329915951,1718830245800,-500.0,0.00024657,5]
[329915953,1718830245810,-500.0,0.00024657,5]
[329915955,1718830245829,-500.0,0.00024657,5]
[329915958,1718830245840,-500.0,0.00024657,5]
[329915960,1718830245850,-500.0,0.00024657,5]
[329915962,1718830245860,-500.0,0.00024657,5]
[329915964,1718830245871,-520.90396981,0.00024657,5]
[329915967,1718830245881,-500.0,0.00024657,5]
[329915969,1718830245891,-439.4425108,0.00024657,5]
[329915971,1718830245907,-60.5574892,0.00024657,5]
[329915974,1718830245918,-500.0,0.00024657,5]
[329915976,1718830245927,-500.0,0.00024657,5]
[329915979,1718830245936,-500.0,0.00024657,5]
[329915982,1718830245950,-112.14102437,0.00024657,5]
[329915985,1718830245962,-387.85897563,0.00024657,5]
[329915988,1718830245972,-500.0,0.00024657,5]
[329915991,1718830245984,-500.0,0.00024657,5]
[329915994,1718830245995,-500.0,0.00024657,5]
[329915997,1718830246005,-503.10480669,0.00024657,5]
[329916000,1718830246014,-500.0,0.00024657,5]
[329916003,1718830246023,-500.0,0.00024657,5]
[329916006,1718830246032,-500.0,0.00024657,5]
[329916009,1718830246041,-500.0,0.00024657,5]
[329916012,1718830246051,-232.53284566,0.00024657,5]
[329916015,1718830246059,-500.0,0.00024657,5]
[329916017,1718830246073,-500.0,0.00024657,5]
[329916020,1718830246082,-500.0,0.00024657,5]
[329916023,1718830246091,-500.0,0.00024657,2]
[329916025,1718830246100,-500.0,0.00024657,5]
[329916027,1718830246108,-500.0,0.00024657,5]
[329916029,1718830246117,-500.0,0.00024657,5]
[329916031,1718830246127,-500.0,0.00024657,5]
[329916034,1718830246136,-3363.76,0.00024657,5]
[329916037,1718830246145,-500.0,0.00024657,5]
[329916039,1718830246154,-500.0,0.00024657,5]
[329916042,1718830246163,-500.0,0.00024657,5]
[329916045,1718830246172,-500.0,0.00024657,5]
[329916047,1718830246181,-500.0,0.00024657,5]
[329916049,1718830246190,-500.0,0.00024657,5]
[329916052,1718830246199,-500.0,0.00024657,5]
[329916053,1718830246208,-273.15743873,0.00024687,2]
[329916055,1718830246218,-151.28629382,0.00024737,2]
[329916057,1718830246227,-153.30180997,0.00024835,2]
[329916059,1718830246236,-751.92,0.0002493,5]
[329916061,1718830246245,-751.92,0.0002493,5]
[329916063,1718830246255,-751.92,0.0002493,5]
[329916066,1718830246265,-500.0,0.00024931,5]
[329916068,1718830246275,-500.0,0.00024931,5]
[329916070,1718830246284,-284.91399945,0.00024931,5]
[329916071,1718830246293,-500.0,0.00024931,5]
[329916072,1718830246301,-500.0,0.00024931,5]
[329916073,1718830246311,-500.0,0.00024931,5]
[329916074,1718830246323,-500.0,0.00024931,5]
[329916075,1718830246333,-500.0,0.00024931,5]
[329916076,1718830246342,-172.79977648,0.00024931,5]
[329916077,1718830246351,-250.0,0.00024931,5]
[329916078,1718830246360,-500.0,0.00024931,5]
[329916079,1718830246370,-525.11782455,0.00024931,5]
[329916080,1718830246380,-500.0,0.00024931,5]
[329916081,1718830246390,-364.57358683,0.00024931,5]
[329916082,1718830246399,-500.0,0.00024931,5]
[329916083,1718830246408,-500.0,0.00024931,5]
[329916084,1718830246418,-500.0,0.00024931,5]
[329916085,1718830246427,-500.0,0.00024931,5]
[329916086,1718830246436,-500.0,0.00024931,5]
[329916087,1718830246445,-500.0,0.00024931,5]
[329916088,1718830246454,-500.0,0.00024931,5]
[329916089,1718830246463,-500.0,0.00024931,5]
[329916090,1718830246473,-500.0,0.00024931,5]
[329916091,1718830246482,-500.0,0.00024931,5]
[329916092,1718830246492,-500.0,0.00024931,5]
[329916093,1718830246501,-500.0,0.00024931,5]
[329916094,1718830246511,-500.0,0.00024931,5]
[329916095,1718830246520,-638.48305745,0.00024931,5]
[329916096,1718830246529,-500.0,0.00024931,5]
[329916097,1718830246538,-749.21,0.00024931,5]
[329916100,1718830246555,-500.0,0.00024931,5]
[329916102,1718830246569,-500.0,0.00024931,5]
[329916104,1718830246580,-500.0,0.00024931,5]
[329916106,1718830246590,-500.0,0.00024931,5]
[329916108,1718830246600,-500.0,0.00024931,5]
[329916110,1718830246610,-665.5,0.00024931,5]
[329916112,1718830246620,-1969.23,0.00024931,5]
[329916114,1718830246630,-500.0,0.00024931,5]
[329916116,1718830246639,-500.0,0.00024931,5]
[329916118,1718830246648,-500.0,0.00024931,5]
[329916120,1718830246658,-500.0,0.00024931,5]
[329916122,1718830246668,-500.0,0.00024931,5]
[329916124,1718830246678,-232.3954322,0.00024931,5]
[329916126,1718830246687,-500.0,0.00024931,5]
[329916128,1718830246696,-500.0,0.00024931,5]
[329916130,1718830246706,-500.0,0.00024931,5]
[329916132,1718830246715,-500.0,0.00024931,5]
[329916134,1718830246724,-500.0,0.00024931,5]
[329916136,1718830246733,-500.0,0.00024931,5]
[329916138,1718830246743,-500.0,0.00024931,5]
[329916141,1718830246752,-500.0,0.00024931,5]
[329916143,1718830246762,-500.0,0.00024931,5]
[329916145,1718830246771,-500.0,0.00024931,5]
[329916147,1718830246780,-601.60671087,0.00024931,5]
[329916148,1718830246791,-500.0,0.00024931,5]
[329916151,1718830246800,-514.16751253,0.00024931,5]
[329916152,1718830246809,-500.0,0.00024931,5]
[329916154,1718830246820,-500.0,0.00024931,5]
[329916156,1718830246830,-500.0,0.00024931,5]
[329916159,1718830246839,-500.0,0.00024931,5]
[329916161,1718830246849,-339.047468,0.00024931,5]
[329916163,1718830246858,-274.32958857,0.00024931,5]
[329916165,1718830246867,-500.0,0.00024931,5]